[Event "Titled Tuesday Blitz December 27 Late 2022"]
[White "Bilan, Danila"]
[Black "Fernandez Guillen, Ernesto J."]
[WhiteFideId "24161918"]
[BlackFideId "3512428"]
[WhiteElo "2303"]
[BlackElo "2477"]
[Result "0-1"]
[Round "07"]
[TimeControl "180+2"]
[Date "2022.12.27"]
[WhiteClock "0:00:04"]
[BlackClock "0:01:01"]

1. d4 {[%clk 0:02:55]}  Nf6 {[%clk 0:02:59]} 2. Nf3 {[%clk 0:02:56]}  g6 {[%clk 0:03:00]} 3. Bg5 {[%clk 0:02:56]}  Bg7 {[%clk 0:03:00]} 4. c3 {[%clk 0:02:56]}  O-O {[%clk 0:02:59]} 5. Nbd2 {[%clk 0:02:56]}  d5 {[%clk 0:02:59]} 6. e3 {[%clk 0:02:56]}  b6 {[%clk 0:03:00]} 7. Bd3 {[%clk 0:02:56]}  Bb7 {[%clk 0:03:00]} 8. Qe2 {[%clk 0:02:48]}  Ne4 {[%clk 0:03:00]} 9. Bf4 {[%clk 0:02:45]}  Nd7 {[%clk 0:02:57]} 10. h4 {[%clk 0:02:42]}  Re8 {[%clk 0:02:50]} 11. h5 {[%clk 0:02:37]}  e5 {[%clk 0:02:45]} 12. dxe5 {[%clk 0:02:32]}  Nxe5 {[%clk 0:02:46]} 13. Nxe5 {[%clk 0:02:17]}  Bxe5 {[%clk 0:02:46]} 14. Bxe5 {[%clk 0:02:15]}  Rxe5 {[%clk 0:02:47]} 15. hxg6 {[%clk 0:02:08]}  hxg6 {[%clk 0:02:48]} 16. O-O-O {[%clk 0:01:26]}  Qe7 {[%clk 0:02:43]} 17. Nf3 {[%clk 0:01:17]}  Rf5 {[%clk 0:01:43]} 18. Rh2 {[%clk 0:00:56]}  Kg7 {[%clk 0:01:28]} 19. Rdh1 {[%clk 0:00:54]}  Rg8 {[%clk 0:01:29]} 20. Rh7+ {[%clk 0:00:23]}  Kf8 {[%clk 0:01:28]} 21. Bxe4 {[%clk 0:00:17]}  dxe4 {[%clk 0:01:28]} 22. Nd4 {[%clk 0:00:17]}  Ra5 {[%clk 0:01:29]} 23. Qc4 {[%clk 0:00:16]}  Bd5 {[%clk 0:01:26]} 24. Qe2 {[%clk 0:00:07]}  Rxa2 {[%clk 0:01:26]} 25. Qg4 {[%clk 0:00:06]}  Ra1+ {[%clk 0:01:17]} 26. Kd2 {[%clk 0:00:06]}  Rxh1 {[%clk 0:01:18]} 27. Rxh1 {[%clk 0:00:03]}  c5 {[%clk 0:01:12]} 28. Qc8+ {[%clk 0:00:03]}  Kg7 {[%clk 0:01:12]} 29. Qh3 {[%clk 0:00:01]}  cxd4 {[%clk 0:01:10]} 30. Qh6+ {[%clk 0:00:02]}  Kf6 {[%clk 0:01:10]} 31. Qf4+ {[%clk 0:00:02]}  Ke6 {[%clk 0:01:10]} 32. cxd4 {[%clk 0:00:02]}  Qb4+ {[%clk 0:01:08]} 33. Ke2 {[%clk 0:00:03]}  Qc4+ {[%clk 0:01:07]} 34. Kd1 {[%clk 0:00:03]}  Qd3+ {[%clk 0:01:06]} 35. Ke1 {[%clk 0:00:04]}  Qb1+ {[%clk 0:01:05]} 36. Ke2 {[%clk 0:00:05]}  Bc4+ {[%clk 0:01:04]} 37. Kd2 {[%clk 0:00:05]}  Qxb2+ {[%clk 0:01:03]} 38. Kd1 {[%clk 0:00:04]}  Bb3+ {[%clk 0:01:02]} 39. Ke1 {[%clk 0:00:03]}  Qc1+ {[%clk 0:01:02]} 40. Ke2 {[%clk 0:00:04]}  Qc2+ {[%clk 0:01:01]} 0-1


[Site "https://www.chess.com"]

[Event "Titled Tuesday Blitz December 27 Late 2022"]
[White "Bjelobrk, Igor"]
[Black "Remolar Gallen, Jose"]
[WhiteFideId "4300726"]
[BlackFideId "2215187"]
[WhiteElo "2403"]
[BlackElo "2285"]
[Result "0-1"]
[Round "07"]
[TimeControl "180+2"]
[Date "2022.12.27"]
[WhiteClock "0:00:10"]
[BlackClock "0:00:09"]

1. Nf3 {[%clk 0:02:57]}  Nf6 {[%clk 0:02:59]} 2. c4 {[%clk 0:02:56]}  g6 {[%clk 0:03:00]} 3. Nc3 {[%clk 0:02:56]}  Bg7 {[%clk 0:03:01]} 4. e4 {[%clk 0:02:57]}  d6 {[%clk 0:03:01]} 5. d4 {[%clk 0:02:57]}  O-O {[%clk 0:03:02]} 6. h3 {[%clk 0:02:57]}  e5 {[%clk 0:03:00]} 7. d5 {[%clk 0:02:56]}  Na6 {[%clk 0:03:00]} 8. Be3 {[%clk 0:02:54]}  Nc5 {[%clk 0:03:00]} 9. Nd2 {[%clk 0:02:54]}  a5 {[%clk 0:02:49]} 10. g4 {[%clk 0:02:53]}  Ne8 {[%clk 0:02:45]} 11. h4 {[%clk 0:02:49]}  Bf6 {[%clk 0:02:35]} 12. g5 {[%clk 0:02:47]}  Bh8 {[%clk 0:02:33]} 13. h5 {[%clk 0:02:45]}  f5 {[%clk 0:02:33]} 14. hxg6 {[%clk 0:02:41]}  hxg6 {[%clk 0:02:33]} 15. exf5 {[%clk 0:02:40]}  Bxf5 {[%clk 0:02:30]} 16. Qf3 {[%clk 0:02:30]}  Qd7 {[%clk 0:02:07]} 17. Nde4 {[%clk 0:02:18]}  Nxe4 {[%clk 0:01:50]} 18. Nxe4 {[%clk 0:02:16]}  Rf7 {[%clk 0:01:49]} 19. Bd3 {[%clk 0:02:06]}  Qa4 {[%clk 0:01:33]} 20. b3 {[%clk 0:01:57]}  Qb4+ {[%clk 0:01:27]} 21. Bd2 {[%clk 0:01:57]}  Qb6 {[%clk 0:01:27]} 22. Qe3 {[%clk 0:01:41]}  Qxe3+ {[%clk 0:01:14]} 23. Bxe3 {[%clk 0:01:42]}  b6 {[%clk 0:01:10]} 24. Kd2 {[%clk 0:01:38]}  Bg7 {[%clk 0:00:58]} 25. a3 {[%clk 0:01:33]}  Bf8 {[%clk 0:00:46]} 26. b4 {[%clk 0:01:31]}  Be7 {[%clk 0:00:43]} 27. Ng3 {[%clk 0:00:47]}  Bxd3 {[%clk 0:00:36]} 28. Kxd3 {[%clk 0:00:45]}  Ng7 {[%clk 0:00:36]} 29. Rh6 {[%clk 0:00:29]}  Nf5 {[%clk 0:00:32]} 30. Rxg6+ {[%clk 0:00:28]}  Kh7 {[%clk 0:00:30]} 31. Nxf5 {[%clk 0:00:27]}  Kxg6 {[%clk 0:00:25]} 32. Nh4+ {[%clk 0:00:21]}  Kg7 {[%clk 0:00:24]} 33. b5 {[%clk 0:00:20]}  Rh8 {[%clk 0:00:22]} 34. Rh1 {[%clk 0:00:17]}  Kg8 {[%clk 0:00:16]} 35. Ke4 {[%clk 0:00:05]}  Rfh7 {[%clk 0:00:14]} 36. Ng6 {[%clk 0:00:05]}  Rxh1 {[%clk 0:00:14]} 37. Nxe7+ {[%clk 0:00:06]}  Kf7 {[%clk 0:00:14]} 38. Nf5 {[%clk 0:00:06]}  R8h4+ {[%clk 0:00:10]} 39. f4 {[%clk 0:00:05]}  exf4 {[%clk 0:00:09]} 40. Bxf4 {[%clk 0:00:05]}  Re1+ {[%clk 0:00:05]} 41. Ne3 {[%clk 0:00:06]}  Kg6 {[%clk 0:00:03]} 42. Kf3 {[%clk 0:00:05]}  Rxf4+ {[%clk 0:00:03]} 43. Kxf4 {[%clk 0:00:05]}  Rxe3 {[%clk 0:00:03]} 44. Kxe3 {[%clk 0:00:06]}  Kxg5 {[%clk 0:00:04]} 45. Ke4 {[%clk 0:00:06]}  Kg4 {[%clk 0:00:05]} 46. a4 {[%clk 0:00:07]}  Kg5 {[%clk 0:00:05]} 47. Kf3 {[%clk 0:00:06]}  Kf5 {[%clk 0:00:06]} 48. Ke3 {[%clk 0:00:06]}  Ke5 {[%clk 0:00:06]} 49. Kd3 {[%clk 0:00:06]}  Kf4 {[%clk 0:00:07]} 50. Kd4 {[%clk 0:00:06]}  Kf3 {[%clk 0:00:07]} 51. Kd3 {[%clk 0:00:06]}  Kf2 {[%clk 0:00:07]} 52. Ke4 {[%clk 0:00:07]}  Ke2 {[%clk 0:00:07]} 53. Kf5 {[%clk 0:00:08]}  Kd3 {[%clk 0:00:07]} 54. Ke6 {[%clk 0:00:08]}  Kxc4 {[%clk 0:00:08]} 55. Kd7 {[%clk 0:00:09]}  Kxd5 {[%clk 0:00:08]} 56. Kxc7 {[%clk 0:00:10]}  Kc5 {[%clk 0:00:09]} 0-1


[Site "https://www.chess.com"]

[Event "Titled Tuesday Blitz December 27 Late 2022"]
[White "Boros, Denes"]
[Black "Barp, Alberto"]
[WhiteFideId "722340"]
[BlackFideId "872555"]
[WhiteElo "2406"]
[BlackElo "2432"]
[Result "0-1"]
[Round "07"]
[TimeControl "180+2"]
[Date "2022.12.27"]
[WhiteClock "0:00:15"]
[BlackClock "0:00:16"]

1. e4 {[%clk 0:03:00]}  e5 {[%clk 0:02:59]} 2. Nf3 {[%clk 0:03:00]}  Nc6 {[%clk 0:02:59]} 3. Nc3 {[%clk 0:02:59]}  Nf6 {[%clk 0:02:59]} 4. Rb1 {[%clk 0:02:58]}  Bb4 {[%clk 0:02:48]} 5. Nd5 {[%clk 0:02:56]}  Nxe4 {[%clk 0:02:39]} 6. c3 {[%clk 0:02:53]}  Be7 {[%clk 0:02:27]} 7. d4 {[%clk 0:02:50]}  exd4 {[%clk 0:02:25]} 8. Bc4 {[%clk 0:01:59]}  O-O {[%clk 0:02:21]} 9. O-O {[%clk 0:02:00]}  dxc3 {[%clk 0:02:09]} 10. Qd3 {[%clk 0:01:51]}  Nf6 {[%clk 0:01:57]} 11. Ng5 {[%clk 0:01:46]}  g6 {[%clk 0:01:57]} 12. Nxe7+ {[%clk 0:01:43]}  Qxe7 {[%clk 0:01:57]} 13. Qxc3 {[%clk 0:01:38]}  d5 {[%clk 0:01:53]} 14. Bb5 {[%clk 0:01:28]}  Qe5 {[%clk 0:01:50]} 15. Bxc6 {[%clk 0:01:21]}  Qxc3 {[%clk 0:01:48]} 16. bxc3 {[%clk 0:01:22]}  bxc6 {[%clk 0:01:48]} 17. Bf4 {[%clk 0:01:22]}  Ba6 {[%clk 0:01:37]} 18. Rfe1 {[%clk 0:01:20]}  Rfe8 {[%clk 0:01:32]} 19. Bxc7 {[%clk 0:01:20]}  Bd3 {[%clk 0:01:31]} 20. Rbc1 {[%clk 0:01:19]}  Bc4 {[%clk 0:01:30]} 21. a3 {[%clk 0:01:13]}  h6 {[%clk 0:01:29]} 22. Nf3 {[%clk 0:01:12]}  Ne4 {[%clk 0:01:29]} 23. Ne5 {[%clk 0:01:07]}  Rac8 {[%clk 0:01:25]} 24. Nxc4 {[%clk 0:00:59]}  dxc4 {[%clk 0:01:11]} 25. Bf4 {[%clk 0:00:58]}  Nxc3 {[%clk 0:01:09]} 26. Kf1 {[%clk 0:00:55]}  Nd5 {[%clk 0:01:05]} 27. Rxe8+ {[%clk 0:00:47]}  Rxe8 {[%clk 0:01:04]} 28. Rxc4 {[%clk 0:00:48]}  Nxf4 {[%clk 0:01:01]} 29. Rxf4 {[%clk 0:00:49]}  Re5 {[%clk 0:00:59]} 30. Ra4 {[%clk 0:00:42]}  a5 {[%clk 0:00:56]} 31. Rc4 {[%clk 0:00:42]}  Rb5 {[%clk 0:00:52]} 32. Rxc6 {[%clk 0:00:36]}  Rb3 {[%clk 0:00:52]} 33. g4 {[%clk 0:00:34]}  Rxa3 {[%clk 0:00:50]} 34. Ra6 {[%clk 0:00:34]}  Kg7 {[%clk 0:00:47]} 35. Kg2 {[%clk 0:00:33]}  g5 {[%clk 0:00:40]} 36. h3 {[%clk 0:00:32]}  f6 {[%clk 0:00:41]} 37. Kh2 {[%clk 0:00:31]}  Kg6 {[%clk 0:00:41]} 38. Kg2 {[%clk 0:00:31]}  Kg7 {[%clk 0:00:41]} 39. Ra7+ {[%clk 0:00:31]}  Kg6 {[%clk 0:00:40]} 40. Ra6 {[%clk 0:00:32]}  Ra4 {[%clk 0:00:40]} 41. Kg3 {[%clk 0:00:31]}  Ra1 {[%clk 0:00:39]} 42. Kg2 {[%clk 0:00:24]}  Kf7 {[%clk 0:00:39]} 43. Kf3 {[%clk 0:00:22]}  a4 {[%clk 0:00:35]} 44. Ke4 {[%clk 0:00:22]}  Kg6 {[%clk 0:00:34]} 45. Kf3 {[%clk 0:00:22]}  a3 {[%clk 0:00:34]} 46. Kg2 {[%clk 0:00:23]}  Kf7 {[%clk 0:00:34]} 47. Kf3 {[%clk 0:00:23]}  Ke7 {[%clk 0:00:33]} 48. Kg2 {[%clk 0:00:22]}  Kd7 {[%clk 0:00:20]} 49. Rxf6 {[%clk 0:00:21]}  Kc7 {[%clk 0:00:20]} 50. Rxh6 {[%clk 0:00:19]}  Kb7 {[%clk 0:00:20]} 51. Rh7+ {[%clk 0:00:20]}  Kb6 {[%clk 0:00:20]} 52. Rh5 {[%clk 0:00:20]}  a2 {[%clk 0:00:19]} 53. Rh6+ {[%clk 0:00:19]}  Kb5 {[%clk 0:00:18]} 54. Rh8 {[%clk 0:00:17]}  Rd1 {[%clk 0:00:16]} 55. Rb8+ {[%clk 0:00:15]}  Kc6 {[%clk 0:00:16]} 56. Ra8 {[%clk 0:00:13]}  a1=Q {[%clk 0:00:16]} 57. Rxa1 {[%clk 0:00:14]}  Rxa1 {[%clk 0:00:16]} 58. Kg3 {[%clk 0:00:14]}  Kd5 {[%clk 0:00:17]} 59. h4 {[%clk 0:00:15]}  Ra3+ {[%clk 0:00:16]} 0-1


[Site "https://www.chess.com"]

[Event "Titled Tuesday Blitz December 27 Late 2022"]
[White "Dias, Joao Batista"]
[Black "Bas Mas, Jose Joaquin"]
[WhiteFideId "2108240"]
[BlackFideId "22219064"]
[WhiteElo "1796"]
[BlackElo "2197"]
[Result "0-1"]
[Round "07"]
[TimeControl "180+2"]
[Date "2022.12.27"]
[WhiteClock "0:01:01"]
[BlackClock "0:00:48"]

1. e4 {[%clk 0:02:58]}  c5 {[%clk 0:02:59]} 2. Nf3 {[%clk 0:02:56]}  d6 {[%clk 0:02:59]} 3. d3 {[%clk 0:02:48]}  g6 {[%clk 0:02:57]} 4. Be2 {[%clk 0:02:48]}  Bg7 {[%clk 0:02:57]} 5. c3 {[%clk 0:02:48]}  e6 {[%clk 0:02:57]} 6. O-O {[%clk 0:02:48]}  Ne7 {[%clk 0:02:57]} 7. Re1 {[%clk 0:02:48]}  O-O {[%clk 0:02:57]} 8. Nbd2 {[%clk 0:02:49]}  Nbc6 {[%clk 0:02:57]} 9. Nf1 {[%clk 0:02:49]}  b5 {[%clk 0:02:58]} 10. a3 {[%clk 0:02:49]}  a5 {[%clk 0:02:58]} 11. Bg5 {[%clk 0:02:48]}  h6 {[%clk 0:02:57]} 12. Bh4 {[%clk 0:02:46]}  Rb8 {[%clk 0:02:57]} 13. Bg3 {[%clk 0:02:45]}  b4 {[%clk 0:02:53]} 14. axb4 {[%clk 0:02:45]}  axb4 {[%clk 0:02:51]} 15. Qd2 {[%clk 0:02:45]}  bxc3 {[%clk 0:02:49]} 16. bxc3 {[%clk 0:02:44]}  Rb3 {[%clk 0:02:47]} 17. Rec1 {[%clk 0:02:43]}  Qc7 {[%clk 0:02:27]} 18. Bd1 {[%clk 0:02:43]}  Rb6 {[%clk 0:02:25]} 19. Ne3 {[%clk 0:02:42]}  Rd8 {[%clk 0:02:23]} 20. Nc4 {[%clk 0:02:41]}  Rb8 {[%clk 0:02:15]} 21. h3 {[%clk 0:02:40]}  Ne5 {[%clk 0:02:07]} 22. Nfxe5 {[%clk 0:02:33]}  dxe5 {[%clk 0:02:07]} 23. Qe3 {[%clk 0:02:23]}  Bd7 {[%clk 0:01:58]} 24. d4 {[%clk 0:02:21]}  Bb5 {[%clk 0:01:54]} 25. Nxe5 {[%clk 0:02:17]}  Nc6 {[%clk 0:01:45]} 26. Nxc6 {[%clk 0:02:15]}  Qxc6 {[%clk 0:01:44]} 27. Bxb8 {[%clk 0:02:15]}  Rxb8 {[%clk 0:01:45]} 28. Rab1 {[%clk 0:02:00]}  Rc8 {[%clk 0:01:44]} 29. Be2 {[%clk 0:01:57]}  Bxe2 {[%clk 0:01:41]} 30. Qxe2 {[%clk 0:01:57]}  cxd4 {[%clk 0:01:41]} 31. cxd4 {[%clk 0:01:56]}  Qxc1+ {[%clk 0:01:41]} 32. Rxc1 {[%clk 0:01:56]}  Rxc1+ {[%clk 0:01:42]} 33. Kh2 {[%clk 0:01:56]}  Rc8 {[%clk 0:01:36]} 34. d5 {[%clk 0:01:56]}  exd5 {[%clk 0:01:35]} 35. exd5 {[%clk 0:01:56]}  Rd8 {[%clk 0:01:35]} 36. Qe4 {[%clk 0:01:55]}  Bf6 {[%clk 0:01:33]} 37. g3 {[%clk 0:01:55]}  Kg7 {[%clk 0:01:33]} 38. Kg2 {[%clk 0:01:55]}  h5 {[%clk 0:01:33]} 39. h4 {[%clk 0:01:55]}  Rd6 {[%clk 0:01:31]} 40. f4 {[%clk 0:01:53]}  Rd8 {[%clk 0:01:29]} 41. f5 {[%clk 0:01:52]}  Rd6 {[%clk 0:01:28]} 42. fxg6 {[%clk 0:01:52]}  fxg6 {[%clk 0:01:29]} 43. Kf3 {[%clk 0:01:49]}  Kf7 {[%clk 0:01:25]} 44. Ke3 {[%clk 0:01:47]}  Kg7 {[%clk 0:01:16]} 45. Kd3 {[%clk 0:01:47]}  Kf7 {[%clk 0:01:16]} 46. Kc4 {[%clk 0:01:47]}  Rd8 {[%clk 0:01:17]} 47. Qe6+ {[%clk 0:01:45]}  Kg7 {[%clk 0:01:17]} 48. d6 {[%clk 0:01:44]}  g5 {[%clk 0:01:13]} 49. hxg5 {[%clk 0:01:43]}  Bxg5 {[%clk 0:01:13]} 50. Kd5 {[%clk 0:01:43]}  Bf6 {[%clk 0:01:10]} 51. Kc6 {[%clk 0:01:42]}  Kg6 {[%clk 0:01:10]} 52. Kc7 {[%clk 0:01:39]}  Kg7 {[%clk 0:01:10]} 53. d7 {[%clk 0:01:38]}  Rf8 {[%clk 0:01:04]} 54. Qe8 {[%clk 0:01:31]}  h4 {[%clk 0:00:58]} 55. g4 {[%clk 0:01:16]}  Bg5 {[%clk 0:00:57]} 56. Qe5+ {[%clk 0:01:14]}  Bf6 {[%clk 0:00:56]} 57. Qf5 {[%clk 0:01:08]}  Bd8+ {[%clk 0:00:53]} 58. Kc8 {[%clk 0:01:01]}  Rxf5 {[%clk 0:00:50]} 59. gxf5 {[%clk 0:01:01]}  Be7 {[%clk 0:00:48]} 0-1


[Site "https://www.chess.com"]

[Event "Titled Tuesday Blitz December 27 Late 2022"]
[White "Fernandez, Maria Florencia"]
[Black "Vega Gutierrez, Sabrina"]
[WhiteFideId "116459"]
[BlackFideId "2219026"]
[WhiteElo "2129"]
[BlackElo "2377"]
[Result "1-0"]
[Round "07"]
[TimeControl "180+2"]
[Date "2022.12.27"]
[WhiteClock "0:00:10"]
[BlackClock "0:00:02"]

1. d4 {[%clk 0:02:54]}  d5 {[%clk 0:02:59]} 2. c4 {[%clk 0:02:54]}  e6 {[%clk 0:03:00]} 3. Nc3 {[%clk 0:02:53]}  c6 {[%clk 0:02:59]} 4. e3 {[%clk 0:02:51]}  f5 {[%clk 0:02:59]} 5. Nf3 {[%clk 0:02:51]}  Nf6 {[%clk 0:02:57]} 6. Bd3 {[%clk 0:02:48]}  Bd6 {[%clk 0:02:57]} 7. O-O {[%clk 0:02:48]}  O-O {[%clk 0:02:56]} 8. b3 {[%clk 0:02:48]}  b6 {[%clk 0:02:57]} 9. Bb2 {[%clk 0:02:48]}  Ne4 {[%clk 0:02:49]} 10. Ne5 {[%clk 0:02:41]}  Bb7 {[%clk 0:02:39]} 11. f3 {[%clk 0:02:39]}  Nxc3 {[%clk 0:02:39]} 12. Bxc3 {[%clk 0:02:40]}  Nd7 {[%clk 0:02:14]} 13. Nxd7 {[%clk 0:02:35]}  Qxd7 {[%clk 0:02:14]} 14. e4 {[%clk 0:02:36]}  fxe4 {[%clk 0:01:14]} 15. fxe4 {[%clk 0:02:37]}  c5 {[%clk 0:01:14]} 16. cxd5 {[%clk 0:02:24]}  Rxf1+ {[%clk 0:01:10]} 17. Qxf1 {[%clk 0:02:08]}  Rf8 {[%clk 0:01:09]} 18. Qe2 {[%clk 0:02:06]}  exd5 {[%clk 0:01:09]} 19. e5 {[%clk 0:02:04]}  cxd4 {[%clk 0:00:43]} 20. Bxd4 {[%clk 0:01:52]}  Bc5 {[%clk 0:00:43]} 21. Bxc5 {[%clk 0:01:35]}  bxc5 {[%clk 0:00:44]} 22. e6 {[%clk 0:01:33]}  Qe7 {[%clk 0:00:44]} 23. Re1 {[%clk 0:01:13]}  Rf6 {[%clk 0:00:44]} 24. Qe5 {[%clk 0:01:02]}  Rf8 {[%clk 0:00:24]} 25. Qh5 {[%clk 0:00:34]}  g6 {[%clk 0:00:23]} 26. Qe5 {[%clk 0:00:34]}  a5 {[%clk 0:00:23]} 27. h4 {[%clk 0:00:28]}  a4 {[%clk 0:00:22]} 28. h5 {[%clk 0:00:28]}  axb3 {[%clk 0:00:17]} 29. axb3 {[%clk 0:00:26]}  Rf6 {[%clk 0:00:11]} 30. hxg6 {[%clk 0:00:25]}  hxg6 {[%clk 0:00:12]} 31. Bb5 {[%clk 0:00:17]}  Kg7 {[%clk 0:00:11]} 32. Bd7 {[%clk 0:00:17]}  c4 {[%clk 0:00:11]} 33. bxc4 {[%clk 0:00:16]}  Qc5+ {[%clk 0:00:10]} 34. Qe3 {[%clk 0:00:12]}  Qe7 {[%clk 0:00:07]} 35. c5 {[%clk 0:00:11]}  Rf8 {[%clk 0:00:02]} 36. c6 {[%clk 0:00:11]}  Bc8 {[%clk 0:00:03]} 37. Qe5+ {[%clk 0:00:10]}  Kg8 {[%clk 0:00:01]} 38. Qxd5 {[%clk 0:00:10]}  Ba6 {[%clk 0:00:01]} 39. Qe5 {[%clk 0:00:09]}  Qf6 {[%clk 0:00:02]} 40. Qxf6 {[%clk 0:00:09]}  Rxf6 {[%clk 0:00:02]} 41. e7 {[%clk 0:00:10]} 1-0


[Site "https://www.chess.com"]

[Event "Titled Tuesday Blitz December 27 Late 2022"]
[White "Foisor, Sabina-Francesca"]
[Black "Fernandez Hernandez, Gerardo"]
[WhiteFideId "1212915"]
[BlackFideId "2207400"]
[WhiteElo "2185"]
[BlackElo "2181"]
[Result "1-0"]
[Round "07"]
[TimeControl "180+2"]
[Date "2022.12.27"]
[WhiteClock "0:00:09"]
[BlackClock "0:00:02"]

1. d4 {[%clk 0:03:00]}  Nf6 {[%clk 0:02:59]} 2. c4 {[%clk 0:03:01]}  c5 {[%clk 0:02:59]} 3. d5 {[%clk 0:03:01]}  b5 {[%clk 0:02:59]} 4. Nf3 {[%clk 0:02:57]}  b4 {[%clk 0:02:58]} 5. g3 {[%clk 0:02:54]}  g6 {[%clk 0:02:57]} 6. Bg2 {[%clk 0:02:54]}  d6 {[%clk 0:02:57]} 7. O-O {[%clk 0:02:55]}  Bg7 {[%clk 0:02:57]} 8. Nbd2 {[%clk 0:02:37]}  O-O {[%clk 0:02:56]} 9. e4 {[%clk 0:02:37]}  Nbd7 {[%clk 0:02:53]} 10. Qc2 {[%clk 0:02:33]}  a5 {[%clk 0:02:46]} 11. h3 {[%clk 0:02:29]}  Ba6 {[%clk 0:02:12]} 12. Re1 {[%clk 0:02:22]}  Qc7 {[%clk 0:02:05]} 13. Nf1 {[%clk 0:02:01]}  Nb6 {[%clk 0:01:56]} 14. Ne3 {[%clk 0:02:01]}  Nfd7 {[%clk 0:01:39]} 15. Rb1 {[%clk 0:01:58]}  a4 {[%clk 0:01:19]} 16. b3 {[%clk 0:01:50]}  axb3 {[%clk 0:01:12]} 17. axb3 {[%clk 0:01:51]}  Ne5 {[%clk 0:01:02]} 18. Nxe5 {[%clk 0:01:47]}  Bxe5 {[%clk 0:01:02]} 19. Bb2 {[%clk 0:01:44]}  Nd7 {[%clk 0:00:58]} 20. f4 {[%clk 0:01:42]}  Bd4 {[%clk 0:00:51]} 21. Qd3 {[%clk 0:01:29]}  Bxb2 {[%clk 0:00:48]} 22. Rxb2 {[%clk 0:01:30]}  Bb7 {[%clk 0:00:47]} 23. e5 {[%clk 0:01:18]}  dxe5 {[%clk 0:00:44]} 24. f5 {[%clk 0:01:19]}  Ra3 {[%clk 0:00:36]} 25. Ng4 {[%clk 0:01:13]}  Rfa8 {[%clk 0:00:26]} 26. fxg6 {[%clk 0:00:47]}  hxg6 {[%clk 0:00:25]} 27. Rf1 {[%clk 0:00:46]}  Ra1 {[%clk 0:00:20]} 28. Rf2 {[%clk 0:00:32]}  Rxf1+ {[%clk 0:00:19]} 29. Rxf1 {[%clk 0:00:30]}  f5 {[%clk 0:00:19]} 30. Nh6+ {[%clk 0:00:30]}  Kg7 {[%clk 0:00:17]} 31. Nxf5+ {[%clk 0:00:31]}  gxf5 {[%clk 0:00:16]} 32. Qxf5 {[%clk 0:00:32]}  Nf6 {[%clk 0:00:09]} 33. Be4 {[%clk 0:00:20]}  Rg8 {[%clk 0:00:05]} 34. g4 {[%clk 0:00:18]}  Kf7 {[%clk 0:00:04]} 35. Qe6+ {[%clk 0:00:17]}  Ke8 {[%clk 0:00:03]} 36. Bh7 {[%clk 0:00:15]}  Rf8 {[%clk 0:00:03]} 37. Bg6+ {[%clk 0:00:16]}  Kd8 {[%clk 0:00:03]} 38. Ra1 {[%clk 0:00:15]}  Qd6 {[%clk 0:00:03]} 39. Qf5 {[%clk 0:00:12]}  Bc8 {[%clk 0:00:02]} 40. Qc2 {[%clk 0:00:10]}  e6 {[%clk 0:00:02]} 41. dxe6 {[%clk 0:00:09]} 1-0


[Site "https://www.chess.com"]

[Event "Titled Tuesday Blitz December 27 Late 2022"]
[White "Garcia Cuenca, Victor"]
[Black "Poliakova, Varvara"]
[WhiteFideId "2250829"]
[BlackFideId "13518313"]
[WhiteElo "2324"]
[BlackElo "2010"]
[Result "1-0"]
[Round "07"]
[TimeControl "180+2"]
[Date "2022.12.27"]
[WhiteClock "0:00:29"]
[BlackClock "0:00:35"]

1. d4 {[%clk 0:03:00]}  e5 {[%clk 0:02:54]} 2. Nf3 {[%clk 0:03:01]}  e4 {[%clk 0:02:53]} 3. Ng5 {[%clk 0:03:01]}  d5 {[%clk 0:02:51]} 4. c4 {[%clk 0:03:01]}  c6 {[%clk 0:02:49]} 5. g3 {[%clk 0:02:59]}  Nf6 {[%clk 0:02:43]} 6. Nc3 {[%clk 0:02:58]}  Bf5 {[%clk 0:02:43]} 7. Bg2 {[%clk 0:02:53]}  Qd7 {[%clk 0:02:40]} 8. h4 {[%clk 0:02:45]}  Bd6 {[%clk 0:02:32]} 9. Qb3 {[%clk 0:02:29]}  O-O {[%clk 0:02:26]} 10. Bd2 {[%clk 0:02:23]}  dxc4 {[%clk 0:02:14]} 11. Qxc4 {[%clk 0:02:23]}  b5 {[%clk 0:02:13]} 12. Qb3 {[%clk 0:02:23]}  b4 {[%clk 0:02:14]} 13. Ncxe4 {[%clk 0:02:20]}  Nxe4 {[%clk 0:02:11]} 14. Nxe4 {[%clk 0:02:20]}  Be6 {[%clk 0:02:10]} 15. Qc2 {[%clk 0:02:17]}  Bf5 {[%clk 0:02:08]} 16. Qc4 {[%clk 0:02:03]}  Be6 {[%clk 0:02:05]} 17. Qc1 {[%clk 0:02:01]}  Bd5 {[%clk 0:02:06]} 18. O-O {[%clk 0:01:57]}  Na6 {[%clk 0:02:00]} 19. Qc2 {[%clk 0:01:50]}  f5 {[%clk 0:01:54]} 20. Nxd6 {[%clk 0:01:46]}  Qxd6 {[%clk 0:01:55]} 21. Bf4 {[%clk 0:01:44]}  Qd7 {[%clk 0:01:53]} 22. e3 {[%clk 0:01:37]}  Rac8 {[%clk 0:01:50]} 23. Rac1 {[%clk 0:01:31]}  Nc7 {[%clk 0:01:42]} 24. Bxc7 {[%clk 0:01:27]}  Rxc7 {[%clk 0:01:42]} 25. Qc5 {[%clk 0:01:23]}  Bxg2 {[%clk 0:01:39]} 26. Kxg2 {[%clk 0:01:24]}  f4 {[%clk 0:01:34]} 27. exf4 {[%clk 0:01:23]}  Rcc8 {[%clk 0:01:31]} 28. Rce1 {[%clk 0:01:04]}  Rxf4 {[%clk 0:01:29]} 29. Re7 {[%clk 0:00:58]}  Qxd4 {[%clk 0:01:25]} 30. Qxa7 {[%clk 0:00:49]}  Qxa7 {[%clk 0:01:24]} 31. Rxa7 {[%clk 0:00:50]}  Rf7 {[%clk 0:01:24]} 32. Rxf7 {[%clk 0:00:45]}  Kxf7 {[%clk 0:01:25]} 33. Rc1 {[%clk 0:00:44]}  Ke6 {[%clk 0:01:23]} 34. Kf3 {[%clk 0:00:45]}  Kd6 {[%clk 0:01:22]} 35. Ke3 {[%clk 0:00:45]}  c5 {[%clk 0:01:21]} 36. b3 {[%clk 0:00:45]}  Re8+ {[%clk 0:01:19]} 37. Kd3 {[%clk 0:00:45]}  Kd5 {[%clk 0:01:18]} 38. Rc2 {[%clk 0:00:44]}  h5 {[%clk 0:01:16]} 39. Re2 {[%clk 0:00:44]}  Rf8 {[%clk 0:01:10]} 40. f4 {[%clk 0:00:44]}  Ra8 {[%clk 0:01:08]} 41. Re5+ {[%clk 0:00:42]}  Kd6 {[%clk 0:01:06]} 42. Kc4 {[%clk 0:00:36]}  Rxa2 {[%clk 0:01:05]} 43. Rd5+ {[%clk 0:00:37]}  Ke6 {[%clk 0:01:03]} 44. Rxc5 {[%clk 0:00:37]}  g6 {[%clk 0:00:58]} 45. Kxb4 {[%clk 0:00:35]}  Kf6 {[%clk 0:00:54]} 46. Rg5 {[%clk 0:00:35]}  Ra8 {[%clk 0:00:52]} 47. Kc5 {[%clk 0:00:33]}  Rc8+ {[%clk 0:00:51]} 48. Kb4 {[%clk 0:00:32]}  Rb8+ {[%clk 0:00:52]} 49. Kc4 {[%clk 0:00:32]}  Rc8+ {[%clk 0:00:49]} 50. Rc5 {[%clk 0:00:33]}  Re8 {[%clk 0:00:49]} 51. b4 {[%clk 0:00:32]}  Re3 {[%clk 0:00:49]} 52. Rg5 {[%clk 0:00:31]}  Re1 {[%clk 0:00:49]} 53. b5 {[%clk 0:00:31]}  Rb1 {[%clk 0:00:42]} 54. Kc5 {[%clk 0:00:31]}  Kf7 {[%clk 0:00:42]} 55. b6 {[%clk 0:00:31]}  Kf6 {[%clk 0:00:39]} 56. Kc6 {[%clk 0:00:31]}  Ke7 {[%clk 0:00:36]} 57. b7 {[%clk 0:00:28]}  Kd8 {[%clk 0:00:35]} 58. Rd5+ {[%clk 0:00:28]}  Ke7 {[%clk 0:00:35]} 59. Rb5 {[%clk 0:00:29]} 1-0


[Site "https://www.chess.com"]